bitfinex-derivatives/quotes_ETHF0:USTF0_20250210
["timestamp","ask_amount","ask_price","bid_price","bid_amount"]
[1739158622423,3.2078,2647.0,2645.7,3.21346915]
[1739158622724,0.5739,2646.9,2646.3,3.2078]
[1739158622926,4.26562798,2647.0,2646.3,3.2078]
[1739158623124,4.19031452,2646.8,2646.3,3.2078]
[1739158623320,3.2078,2646.5,2645.7,0.00566915]
[1739158623528,3.2078,2646.2,2645.7,0.00566915]
[1739158623825,4.00440055,2646.1,2645.7,0.00566915]
[1739158624027,3.94093432,2646.1,2645.7,0.00566915]
[1739158624224,3.2078,2646.3,2645.7,0.00566915]
[1739158624426,3.94093432,2646.1,2645.7,0.00566915]
[1739158624728,3.14166915,2647.1,2645.8,3.2078]
[1739158625025,3.96346556,2646.7,2646.6,3.2078]
[1739158625224,3.96346556,2646.7,2646.6,5.39729895]
[1739158625429,0.00566915,2647.1,2646.6,11.39729895]
[1739158625625,0.00566915,2647.1,2647.0,3.2078]
[1739158625932,3.2078,2649.5,2647.3,0.75534]
[1739158626228,4.19468984,2648.4,2647.8,3.2078]
[1739158626435,4.19468984,2648.4,2648.1,3.2078]
[1739158626625,3.156,2648.8,2648.1,3.2078]
[1739158626927,4.33042879,2648.7,2648.5,3.2078]
[1739158627324,0.00566915,2648.7,2648.5,3.2078]
[1739158627524,0.00566915,2648.7,2648.5,5.39729895]
[1739158627928,3.146,2650.3,2648.5,11.39729895]
[1739158628126,3.146,2650.3,2648.2,0.00566915]
[1739158628127,3.146,2650.3,2649.9,3.2078]
[1739158628328,10.6179227,2650.3,2649.9,3.2078]
[1739158628632,0.06335145,2650.2,2649.9,3.2078]
[1739158628825,7.4101227,2650.3,2649.9,3.2078]
[1739158629024,4.13443613,2650.1,2649.9,3.2078]
[1739158629227,4.13443613,2650.2,2649.9,3.2078]
[1739158629432,3.2711541,2650.1,2649.8,0.00566915]
[1739158629633,0.0633541,2650.0,2649.8,0.00566915]
[1739158629820,4.1745271,2650.0,2649.8,0.00566915]
[1739158630027,4.111173,2650.0,2649.8,0.00566915]
[1739158630323,0.00566915,2650.3,2649.8,0.00566915]
[1739158630521,4.111173,2650.2,2650.0,3.2078]
[1739158630727,0.00566915,2650.3,2650.0,3.2078]
[1739158631026,4.27528931,2650.2,2650.0,3.2078]
[1739158631420,4.27528931,2650.2,2649.8,0.00566915]
[1739158631621,4.27528931,2650.2,2649.9,3.2078]
[1739158631827,0.06335355,2650.1,2649.8,0.00566915]
[1739158632023,3.2078,2650.0,2649.0,3.2078]
[1739158632229,0.06335355,2649.9,2649.3,3.2078]
[1739158632726,4.30303371,2649.8,2649.1,3.2078]
[1739158632926,0.06335355,2649.7,2649.1,3.2078]
[1739158633435,4.0385619,2649.6,2649.1,3.21346915]
[1739158633635,4.0385619,2649.6,2649.1,0.00566915]
[1739158633636,3.27115355,2649.5,2649.1,0.00566915]
[1739158633933,3.17737758,2649.4,2649.1,0.00566915]
[1739158634129,3.17737758,2649.4,2647.7,2.18949895]
[1739158634130,3.2078,2649.2,2648.3,3.2078]
[1739158634433,0.06337758,2649.1,2648.9,3.2078]
[1739158634634,4.00963287,2649.1,2648.9,3.2078]
[1739158634827,4.00963287,2649.2,2648.6,3.2078]
[1739158635029,3.27118009,2649.1,2648.6,3.2078]
[1739158635328,3.2078,2648.8,2648.0,3.2078]
[1739158635533,3.16338009,2648.7,2648.0,3.2078]
[1739158635734,0.06338009,2648.7,2648.0,3.2078]
[1739158635926,0.00566915,2649.2,2647.0,0.5698]
[1739158635927,0.00566915,2649.2,2648.4,3.2078]
[1739158636130,4.00768348,2648.6,2648.4,3.2078]
[1739158636333,4.00768348,2648.6,2648.1,3.2078]
[1739158636532,3.2078,2649.0,2648.1,3.2078]
[1739158636533,7.10568348,2649.0,2648.1,3.2078]
[1739158636731,7.27887093,2648.9,2648.1,3.2078]
[1739158636938,3.94371261,2648.5,2647.5,3.2078]
[1739158637131,3.2078,2648.0,2647.1,3.2078]
[1739158637435,3.848401,2647.9,2647.7,3.2078]
[1739158637636,0.06338745,2647.8,2647.4,3.2078]
[1739158638035,4.17770255,2647.7,2647.4,3.2078]
[1739158638231,4.17770255,2647.7,2646.9,3.2078]
[1739158638434,0.06341571,2647.6,2646.9,3.2078]
[1739158638831,4.17770255,2647.5,2646.9,3.2078]
[1739158639032,0.06341571,2647.4,2646.9,3.2078]
[1739158639230,3.2078,2647.0,2646.4,3.2078]
[1739158639435,0.06341571,2646.9,2646.1,3.2078]
[1739158639636,3.95003948,2646.9,2646.1,3.2078]
[1739158639836,0.06341571,2646.8,2646.5,3.2078]
[1739158640033,3.092,2648.2,2646.6,2.18949895]
[1739158640236,0.0634163,2647.9,2647.8,3.2078]
[1739158640541,4.07491185,2647.9,2647.3,3.2078]
[1739158640835,0.00566915,2647.6,2647.0,3.2078]
[1739158641030,0.06340581,2647.5,2646.7,3.2078]
[1739158641232,4.10787785,2647.5,2646.7,3.2078]
[1739158641431,0.06340581,2647.4,2646.4,3.2078]
[1739158641629,0.06340581,2647.4,2645.8,2.73899895]
[1739158641630,6.2898,2647.3,2646.5,3.2078]
[1739158641835,0.06340581,2647.2,2646.2,3.2078]
[1739158642040,3.2078,2646.9,2645.9,3.2078]
[1739158642242,0.06340581,2646.8,2645.6,3.2078]
[1739158642443,3.2078,2646.6,2645.6,3.2078]
[1739158642735,2.18949895,2646.9,2645.3,3.2078]
[1739158642736,3.2078,2646.3,2645.3,3.2078]
[1739158642938,3.13340581,2646.2,2645.3,3.2078]
[1739158643142,3.2078,2645.7,2645.3,3.2078]
[1739158643531,3.2078,2645.4,2644.4,3.2078]
[1739158643729,3.2078,2645.1,2644.1,3.2078]
[1739158643930,3.2078,2644.6,2644.1,3.2078]
[1739158644233,0.81952183,2645.0,2644.2,3.2078]
[1739158644234,0.00566915,2644.9,2644.2,3.2078]
[1739158644436,4.06546188,2644.5,2644.3,3.2078]
[1739158644638,4.2854206,2644.8,2644.0,3.2078]
[1739158644940,4.2854206,2644.8,2643.4,3.2078]
[1739158644941,3.2078,2644.8,2643.4,3.2078]
[1739158645137,3.2078,2644.5,2643.4,3.2078]
[1739158645340,3.2078,2644.2,2643.4,3.2078]
[1739158645732,3.2078,2644.2,2642.7,0.561]
[1739158645733,3.2078,2643.8,2642.7,3.2078]
[1739158645935,3.2078,2643.5,2642.7,3.2078]
[1739158646135,3.058,2643.4,2642.7,3.2078]
[1739158646338,4.3009459,2643.4,2643.3,3.2078]
[1739158646741,4.3009459,2643.4,2642.6,3.2078]
[1739158647038,6.2618,2643.3,2642.5,3.2078]
[1739158647236,3.2078,2643.0,2642.2,3.2078]
[1739158647639,4.2660015,2642.9,2642.2,3.2078]
[1739158648031,3.84022407,2643.0,2642.2,3.2078]
[1739158648233,3.2078,2642.7,2642.2,3.2078]
[1739158648531,4.24143138,2642.6,2642.2,3.2078]
[1739158648730,4.24143138,2642.6,2642.5,3.2078]
[1739158648935,7.19243229,2642.9,2642.5,3.2078]
[1739158649137,4.15043229,2643.1,2642.8,3.2078]
[1739158649343,0.00566915,2643.4,2642.8,3.2078]
[1739158649538,4.15043229,2642.9,2642.8,3.2078]
[1739158649845,0.12691009,2643.1,2642.8,3.2078]
[1739158650136,0.00566915,2643.4,2642.8,3.2078]
[1739158650335,4.09462554,2643.2,2643.1,3.2078]
[1739158650531,4.09462554,2643.3,2643.1,3.2078]
[1739158650737,0.00566915,2643.4,2643.1,3.2078]
[1739158651037,4.12487837,2643.3,2643.1,3.2078]
[1739158651736,0.5661,2644.7,2643.1,9.2078]
[1739158651931,3.2078,2645.2,2642.3,0.5896]
[1739158651932,3.021,2644.8,2644.3,3.2078]
[1739158652137,2.85118752,2644.5,2643.9,3.2078]
[1739158652641,3.2078,2644.3,2643.5,3.2078]
[1739158652952,3.2078,2644.0,2643.2,3.2078]
[1739158653143,3.015,2643.9,2643.6,0.00566915]
[1739158653441,7.15795365,2643.9,2643.6,3.21346915]
[1739158653838,7.15795365,2643.9,2643.6,0.00566915]
[1739158654142,4.14295365,2643.9,2643.6,0.00566915]
[1739158654338,4.14295365,2643.9,2643.8,3.2078]
[1739158654837,0.00566915,2644.2,2643.8,11.39729895]
[1739158655039,0.00566915,2644.2,2644.1,3.2078]
[1739158655740,4.15181927,2644.2,2643.8,3.2078]
[1739158656044,4.15181927,2644.2,2644.1,3.2078]
[1739158656243,4.15181927,2644.2,2643.6,0.00566915]
[1739158656244,7.15281927,2644.2,2643.6,0.00566915]
[1739158656444,7.15281927,2644.2,2643.7,3.2078]
[1739158656642,10.36061927,2644.2,2643.6,0.00566915]
[1739158656847,3.2078,2643.9,2643.6,0.00566915]
[1739158657145,6.21446915,2644.2,2643.6,0.00566915]
[1739158657344,4.39018396,2643.8,2643.6,0.00566915]
[1739158657538,4.39018396,2643.8,2643.6,3.21346915]
[1739158657842,7.59798396,2644.0,2643.6,0.00566915]
[1739158658034,4.10925723,2643.7,2643.6,0.00566915]
[1739158658437,4.10925723,2643.9,2643.6,0.00566915]
[1739158658639,2.995,2644.1,2643.6,3.21346915]
[1739158658837,7.31705723,2644.0,2643.6,0.00566915]
[1739158659043,3.5873,2644.0,2643.6,0.00566915]
[1739158659448,4.11270155,2643.9,2643.6,0.00566915]
[1739158660247,4.11270155,2643.9,2643.7,3.2078]
[1739158660544,0.00566915,2644.2,2643.8,2.18949895]
[1739158660749,0.00566915,2644.2,2644.1,3.2078]
[1739158661141,2.982,2645.6,2644.1,9.2078]
[1739158661339,0.586,2645.7,2644.7,3.2078]
[1739158661648,4.32231375,2645.2,2644.6,2.18949895]
[1739158661850,4.32231375,2645.6,2645.1,3.2078]
[1739158662143,3.45872727,2645.7,2645.1,3.2078]
[1739158662346,4.15368844,2645.9,2645.1,3.2078]
[1739158662552,0.00566915,2645.6,2645.1,3.21346915]
[1739158662740,0.00566915,2645.6,2645.5,3.2078]
[1739158664145,2.967,2646.6,2645.5,9.2078]
[1739158664441,2.967,2646.6,2645.4,2.18949895]
[1739158664442,2.967,2646.6,2645.9,3.2078]
[1739158664653,4.3536293,2646.5,2645.9,3.2078]
[1739158665049,4.3536293,2646.5,2645.4,2.18949895]
[1739158665050,4.3536293,2646.5,2646.2,3.2078]
[1739158665353,2.951,2647.1,2646.2,3.2078]
[1739158665643,0.00566915,2646.5,2646.4,3.2078]
[1739158666050,3.97321164,2646.5,2646.4,3.2078]
[1739158666245,13.24445617,2646.5,2645.6,3.2078]
[1739158666453,0.06344453,2646.4,2646.2,0.00566915]
[1739158666648,3.97321164,2646.5,2646.2,3.21346915]
[1739158666848,3.96754249,2646.3,2646.2,0.00566915]
[1739158667048,0.00566915,2646.5,2646.2,3.21346915]
[1739158667551,0.6024,2647.9,2646.6,3.2078]
[1739158667751,0.06341473,2647.8,2647.4,3.2078]
[1739158668050,4.13614731,2647.6,2647.4,3.2078]
[1739158668249,4.13614731,2647.8,2647.4,3.2078]
[1739158668449,5.39729895,2648.6,2646.6,2.18949895]
[1739158668450,3.5385,2648.4,2647.7,3.2078]
[1739158668756,3.92909349,2647.8,2646.6,2.18949895]
[1739158668958,3.92909349,2647.9,2647.4,3.2078]
[1739158669251,4.10279821,2648.2,2647.4,3.2078]
[1739158669462,4.10279821,2647.8,2647.7,3.2078]
[1739158669754,4.10279821,2648.2,2647.7,3.2078]
[1739158669955,0.00566915,2648.3,2647.7,3.2078]
[1739158670152,0.06340481,2648.2,2647.4,3.2078]
[1739158670350,4.37564009,2648.2,2647.8,3.2078]
[1739158670546,4.31223528,2648.2,2648.1,3.2078]
[1739158670748,0.00566915,2648.3,2648.1,3.2078]
[1739158671853,0.00566915,2648.3,2646.9,0.00566915]
[1739158671854,4.27062432,2648.2,2647.0,2.18949895]
[1739158672151,4.27062432,2648.2,2647.8,3.2078]
[1739158672351,4.27062432,2648.2,2647.5,3.2078]
[1739158672658,0.06340688,2648.1,2647.5,3.2078]
[1739158672852,0.06340688,2648.1,2647.3,3.2078]
[1739158673160,0.06340688,2648.1,2647.4,3.2078]
[1739158673161,4.18892461,2648.0,2647.4,3.2078]
[1739158673553,4.18892461,2648.0,2647.5,3.2078]
[1739158673955,4.18892461,2648.0,2646.9,0.00566915]
[1739158673956,4.18892461,2648.0,2647.9,3.2078]
[1739158674153,4.18892461,2648.0,2647.5,3.2078]
[1739158674361,3.2078,2647.6,2646.9,3.21346915]
[1739158674654,10.18892461,2648.0,2646.9,0.00566915]
[1739158674655,3.2078,2648.0,2646.9,0.00566915]
[1739158674854,4.32699906,2647.5,2646.9,0.00566915]
[1739158675058,3.2078,2647.6,2646.9,0.00566915]
[1739158675059,0.06342263,2647.4,2646.9,0.00566915]
[1739158675250,3.2078,2647.0,2646.2,3.2078]
[1739158675453,3.2078,2646.7,2646.2,3.2078]
[1739158675653,6.99873801,2646.9,2646.1,3.2078]
[1739158675855,4.10873801,2646.6,2646.1,3.2078]
[1739158676059,4.10873801,2646.6,2645.7,3.2078]
[1739158676252,3.2078,2646.2,2645.4,3.2078]
[1739158676560,3.2078,2646.0,2644.7,3.2078]
[1739158676856,3.2078,2645.9,2644.7,3.2078]
[1739158677060,3.2078,2645.6,2645.1,0.00566915]
[1739158677456,3.97218409,2645.5,2645.1,0.00566915]
[1739158677754,2.884,2646.1,2645.4,3.2078]
[1739158677963,3.97218409,2645.9,2645.7,3.2078]
[1739158678159,2.884,2646.1,2645.7,3.2078]
[1739158678355,2.884,2646.1,2646.0,3.2078]
[1739158678662,2.874,2646.7,2646.0,3.2078]
[1739158678864,4.37358257,2646.1,2646.0,3.2078]
[1739158679065,4.12525564,2646.3,2646.0,3.2078]
[1739158679365,2.906,2647.2,2646.0,3.2078]
[1739158679366,3.2078,2646.8,2646.0,3.2078]
[1739158679557,4.12525564,2646.3,2646.0,3.2078]
[1739158679757,7.03325564,2646.3,2646.0,3.2078]
[1739158680262,3.2078,2646.1,2645.3,3.2078]
[1739158680452,3.2078,2646.1,2645.1,0.00566915]
[1739158680655,3.2078,2645.5,2645.1,0.00566915]
[1739158680864,2.9,2645.4,2645.1,0.00566915]
[1739158681162,4.38838137,2645.4,2645.1,0.00566915]
[1739158681362,0.30036057,2646.7,2645.3,3.2078]
[1739158681563,0.5981,2647.4,2646.3,3.2078]
[1739158682065,0.5981,2647.4,2646.3,9.2078]
[1739158682268,0.5981,2647.4,2646.3,11.39729895]
[1739158682761,6.1588,2647.8,2646.3,11.39729895]
[1739158683066,4.16104228,2647.3,2647.1,3.2078]
[1739158683464,2.941,2648.1,2647.1,3.2078]
[1739158683770,4.16104228,2647.9,2647.6,3.2078]
[1739158684159,3.2078,2647.8,2647.3,0.00566915]
[1739158684463,4.15852317,2647.8,2647.3,0.00566915]
[1739158685165,3.2078,2647.5,2647.3,0.00566915]
[1739158685364,3.2078,2647.5,2646.1,3.2078]
[1739158685572,4.31057959,2647.4,2647.2,3.2078]
[1739158685867,4.31057959,2647.4,2645.9,2.18949895]
[1739158685868,0.06343024,2647.3,2646.6,3.2078]
[1739158686171,3.98864919,2647.2,2646.6,3.2078]
[1739158686567,7.19644919,2647.5,2646.6,3.2078]
[1739158686867,4.05208154,2647.4,2646.6,3.21346915]
[1739158687166,0.06343235,2647.3,2646.6,3.21346915]
[1739158687467,0.3795,2646.9,2646.6,0.00566915]
[1739158687666,0.06343235,2646.8,2646.6,0.00566915]
[1739158687867,3.99506055,2646.8,2646.6,0.00566915]
[1739158688071,3.99506055,2646.8,2644.9,3.2078]
[1739158688072,0.06343796,2646.7,2644.9,3.2078]
[1739158688367,3.2078,2646.0,2645.1,3.2078]
[1739158688568,0.06343796,2645.9,2644.9,3.2078]
[1739158688865,4.33915973,2645.9,2645.6,3.2078]
[1739158689066,3.2078,2646.8,2645.6,9.2078]
[1739158689261,0.06343981,2646.7,2646.3,3.2078]
[1739158689465,3.98387362,2646.5,2646.3,3.2078]
[1739158689664,3.98387362,2646.7,2646.3,3.2078]
[1739158689868,3.98387362,2646.6,2646.3,3.2078]
[1739158690065,3.21346915,2646.8,2645.7,3.2078]
[1739158690066,0.06344211,2646.5,2645.7,3.2078]
[1739158690265,0.06344211,2646.4,2645.5,0.00566915]
[1739158690466,6.93346844,2646.4,2645.5,0.00566915]
[1739158690667,0.06344211,2646.3,2645.5,0.00566915]
[1739158690869,2.917,2646.4,2645.5,0.00566915]
[1739158690870,0.06345524,2646.2,2645.5,0.00566915]
[1739158691068,3.2078,2646.2,2645.5,0.00566915]
[1739158691371,0.19181561,2646.0,2645.5,0.00566915]
[1739158691568,4.01080147,2646.1,2645.7,3.2078]
[1739158691764,4.01080147,2645.9,2645.7,3.2078]
[1739158691969,4.01080147,2646.2,2645.7,9.2078]
[1739158692167,4.01080147,2646.2,2645.5,2.1951681]
[1739158692168,4.01080147,2646.2,2646.1,3.2078]
[1739158692366,0.00566915,2646.8,2646.1,3.2078]
[1739158692576,0.00566915,2646.8,2646.7,3.2078]
[1739158692874,4.15625027,2646.8,2646.6,3.2078]
[1739158693262,4.15625027,2646.8,2646.2,3.2078]
[1739158693465,0.06343841,2646.7,2646.1,3.2078]
[1739158693666,4.15625027,2646.8,2646.0,3.2078]
[1739158693865,4.10127352,2646.6,2646.3,3.2078]
[1739158694067,0.06344456,2646.5,2645.7,3.2078]
[1739158694268,3.27124456,2646.4,2645.5,0.00566915]
[1739158694467,0.06344456,2646.3,2645.9,3.2078]
[1739158694678,0.00566915,2646.8,2646.2,3.2078]
[1739158694874,0.06344376,2646.7,2646.2,3.2078]
[1739158695075,4.07079899,2646.3,2645.9,3.2078]
[1739158695266,4.07079899,2646.7,2645.6,3.2078]
[1739158695466,4.13424856,2646.6,2645.6,3.2078]
[1739158695673,0.06344957,2646.5,2645.5,0.00566915]
[1739158695878,3.27124957,2646.4,2645.5,0.00566915]
[1739158696074,0.06344957,2646.3,2645.5,0.00566915]
[1739158696379,3.2078,2646.1,2645.5,0.00566915]
[1739158696678,0.06346205,2646.0,2645.5,0.00566915]
[1739158696868,3.2078,2645.8,2645.5,0.00566915]
[1739158697070,3.2078,2645.8,2645.3,3.2078]
[1739158697071,0.06346205,2645.7,2645.3,3.2078]
[1739158697273,4.13643977,2645.7,2645.3,3.2078]
[1739158697475,4.07297772,2645.7,2645.3,3.2078]
[1739158697773,6.1038,2646.1,2645.3,3.2078]
[1739158697774,0.06346524,2645.6,2645.3,3.2078]
[1739158697977,3.2078,2645.5,2644.8,3.2078]
[1739158698175,3.2078,2645.5,2643.9,2.21768586]
[1739158698176,0.06346524,2645.4,2644.3,3.2078]
[1739158698376,3.2078,2645.2,2644.3,3.2078]
[1739158698574,0.06346524,2645.1,2644.3,3.2078]
[1739158698775,4.0648766,2645.1,2644.6,0.00566915]
[1739158698968,0.06346524,2645.0,2644.6,0.00566915]
[1739158699178,0.06346524,2645.0,2644.8,3.2078]
[1739158699375,4.0702438,2644.9,2644.8,3.2078]
[1739158699570,0.00566915,2645.1,2644.8,3.2078]
[1739158699781,4.0702438,2645.0,2644.8,3.2078]
[1739158700178,0.00566915,2645.1,2644.8,3.2078]
[1739158700677,2.867,2646.5,2644.9,0.75604]
[1739158700882,2.867,2646.5,2646.0,3.2078]
[1739158701077,4.06068839,2646.1,2645.5,3.2078]
[1739158701276,0.06345224,2646.0,2645.5,3.2078]
[1739158701577,0.17266118,2645.9,2645.3,3.2078]
[1739158701780,3.2078,2645.6,2645.0,3.2078]
[1739158701981,2.92345224,2645.5,2645.3,0.00566915]
[1739158702172,2.92345224,2645.5,2645.0,3.2078]
[1739158702173,0.06345224,2645.4,2645.0,3.2078]
[1739158702575,4.25666198,2645.3,2645.0,3.2078]
[1739158702776,0.06345224,2645.2,2645.0,3.2078]
[1739158703180,3.94668722,2645.1,2645.0,3.2078]
[1739158703480,4.01017329,2645.1,2644.8,0.00566915]
[1739158703685,0.06348607,2645.0,2644.8,0.00566915]
[1739158703984,4.36483631,2644.9,2644.8,0.00566915]
[1739158704182,4.42832238,2644.9,2644.8,0.00566915]
[1739158704479,4.42832238,2644.9,2644.1,3.2078]
[1739158704480,6.06348607,2644.9,2644.1,3.2078]
[1739158704679,3.27128607,2644.8,2643.5,3.2078]
[1739158704889,3.27128607,2644.8,2643.3,2.18949895]
[1739158704890,0.06348607,2644.7,2644.0,3.2078]
[1739158705082,2.834,2644.6,2643.9,3.2078]
[1739158705376,2.94536895,2645.6,2642.8,0.75665]
[1739158705377,0.06349764,2644.5,2644.3,3.2078]
[1739158705575,3.2078,2646.1,2644.3,3.2078]
[1739158705773,2.6116659,2645.6,2645.4,3.2078]
[1739158705978,4.38885738,2645.6,2645.4,3.2078]
[1739158706188,2.6116659,2645.5,2645.0,3.2078]
[1739158706378,2.835,2645.8,2645.0,3.2078]
[1739158706578,2.6116659,2645.1,2645.0,3.2078]
[1739158706773,2.6116659,2645.1,2644.7,3.2078]
[1739158706977,2.6116659,2644.8,2644.2,2.18949895]
[1739158707187,2.6116659,2644.5,2644.4,3.2078]
[1739158707492,3.10062383,2644.5,2644.1,3.2078]
[1739158707779,0.48895793,2644.5,2644.2,0.00566915]
[1739158707981,0.06300875,2644.4,2644.2,0.00566915]
[1739158708177,2.6116659,2644.3,2644.1,3.2078]
[1739158708380,2.6116659,2644.1,2644.0,3.2078]
[1739158708779,6.89259011,2644.1,2643.6,3.2078]
[1739158708985,4.28092421,2644.1,2643.6,3.2078]
[1739158709294,2.6116659,2643.7,2643.3,3.2078]
[1739158709584,2.6116659,2643.9,2643.6,3.2078]
[1739158709885,2.6116659,2644.5,2643.6,3.2078]
[1739158710191,0.00566915,2644.6,2644.3,3.2078]
[1739158710376,2.61733505,2644.6,2644.3,3.2078]
[1739158710578,0.00566915,2644.6,2644.3,3.2078]
[1739158710885,2.6116659,2644.4,2644.3,3.2078]
[1739158711183,7.0643699,2644.4,2643.8,3.2078]
[1739158711381,9.81836352,2644.4,2643.8,3.2078]
[1739158711785,9.81836352,2644.4,2644.3,3.2078]
[1739158711981,2.6116659,2644.3,2643.9,3.2078]
[1739158712483,2.6116659,2644.0,2643.6,3.2078]
[1739158712788,2.6116659,2644.0,2643.4,2.18949895]
[1739158712789,2.6116659,2643.7,2643.3,3.2078]
[1739158712988,2.6116659,2643.6,2643.0,5.39729895]
[1739158713283,6.62187552,2643.6,2643.0,5.39729895]
[1739158713479,2.6116659,2643.6,2643.3,3.2078]
[1739158713676,2.817,2644.4,2643.4,2.18949895]
[1739158713887,2.817,2644.4,2644.0,3.2078]
[1739158714185,2.6116659,2643.5,2643.0,2.18949895]
[1739158714380,2.6116659,2643.5,2642.6,2.18949895]
[1739158714381,2.6116659,2642.9,2642.6,2.18949895]
[1739158714583,2.6116659,2642.9,2642.5,3.2078]
[1739158715393,2.6116659,2642.9,2642.2,2.18949895]
[1739158715394,2.6116659,2642.9,2642.7,3.2078]
[1739158715593,2.6116659,2642.9,2642.5,3.2078]
[1739158716295,2.6116659,2642.6,2642.2,5.39729895]
[1739158716499,0.00566915,2643.0,2642.2,5.39729895]
[1739158716500,2.6116659,2642.9,2642.2,5.39729895]
[1739158716696,2.6116659,2642.4,2642.2,3.2078]
[1739158716892,4.37805348,2642.5,2642.2,3.2078]
[1739158717104,2.6116659,2642.9,2642.2,5.39729895]
[1739158717297,6.91335421,2642.9,2642.6,3.2078]
[1739158717498,2.6116659,2642.9,2642.6,3.2078]
[1739158718001,0.00566915,2643.0,2642.6,11.39729895]
[1739158718202,0.00566915,2643.0,2642.6,2.18949895]
[1739158718400,2.6116659,2642.7,2642.5,3.2078]
[1739158718608,2.6116659,2642.6,2642.2,5.39729895]
[1739158718904,2.6116659,2642.3,2641.6,3.2078]
[1739158719100,3.2078,2642.5,2641.6,3.2078]
[1739158719302,2.6116659,2641.7,2641.6,3.2078]
[1739158719499,2.6116659,2641.7,2641.3,3.2078]
[1739158720301,4.22864486,2641.6,2641.0,2.18949895]
[1739158720506,2.6116659,2641.7,2641.5,3.2078]
[1739158720997,0.00566915,2641.8,2641.5,3.2078]
[1739158721302,0.5762,2643.0,2641.5,9.2078]
[1739158721504,2.6116659,2642.8,2642.3,2.18949895]
[1739158721698,1.88998,2645.2,2642.8,0.75663]
[1739158721699,3.2078,2644.9,2642.8,0.75663]
[1739158721901,2.97663891,2645.2,2643.7,3.2078]
[1739158721902,2.6116659,2644.1,2643.7,3.2078]
[1739158722100,4.36995239,2644.3,2644.0,3.2078]
[1739158722408,2.6116659,2644.0,2643.8,2.18949895]
[1739158722715,2.6116659,2644.1,2643.9,0.00566915]
[1739158722999,0.00566915,2644.4,2644.0,3.2078]
[1739158723205,2.6116659,2644.0,2643.9,0.00566915]
[1739158723410,6.54640225,2644.0,2643.9,0.00566915]
[1739158723606,0.00566915,2644.4,2643.9,0.50478169]
[1739158723804,2.6116659,2644.1,2643.9,3.71258169]
[1739158724010,6.54640225,2644.0,2643.9,3.71258169]
[1739158724307,2.6116659,2644.0,2643.9,3.71258169]
[1739158724696,2.6116659,2644.0,2643.9,0.50478169]
[1739158724904,15.7826386,2644.0,2642.9,3.2078]
[1739158725099,15.7826386,2644.0,2642.6,5.39729895]
[1739158725100,2.6116659,2643.3,2642.6,5.39729895]
[1739158725310,2.6116659,2643.5,2643.0,3.2078]
[1739158725505,2.6116659,2643.5,2643.3,3.2078]
[1739158725711,4.07034162,2643.4,2643.3,3.2078]
[1739158725901,12.66380752,2643.4,2642.3,3.2078]
[1739158726102,2.6116659,2642.5,2642.3,3.2078]
[1739158726303,2.6116659,2642.6,2642.3,3.2078]
[1739158726801,2.6116659,2642.4,2641.8,5.39729895]
[1739158727001,2.6116659,2642.2,2641.8,2.18949895]
[1739158727206,2.6116659,2642.2,2642.1,3.2078]
[1739158727713,2.6116659,2642.2,2641.8,5.39729895]
[1739158727903,2.6116659,2641.9,2641.8,5.39729895]
[1739158728212,2.6116659,2641.9,2641.5,3.2078]
[1739158728413,3.99760573,2641.9,2641.8,5.39729895]
[1739158728704,3.2078,2642.5,2641.8,3.2078]
[1739158728907,3.2078,2642.5,2641.4,2.18949895]
[1739158728908,2.6116659,2642.0,2641.4,5.39729895]
[1739158729402,2.6116659,2642.0,2641.8,3.2078]
[1739158729908,2.6116659,2642.0,2641.6,3.2078]
[1739158730112,2.6116659,2641.8,2641.6,3.2078]
[1739158730414,4.08251467,2641.9,2641.4,2.18949895]
[1739158730415,2.6116659,2641.7,2641.4,2.18949895]
[1739158730600,6.69418057,2641.7,2641.6,3.2078]
[1739158730799,4.08251467,2641.8,2641.6,3.2078]
[1739158731002,6.69418057,2641.8,2641.6,3.2078]
[1739158731204,2.6116659,2641.8,2641.6,3.2078]
[1739158731402,2.741,2642.5,2641.6,3.2078]
[1739158731602,2.6116659,2642.1,2641.9,3.2078]
[1739158731810,4.31853484,2642.4,2641.9,3.2078]
[1739158732008,2.6116659,2642.6,2642.3,5.39729895]
[1739158732310,3.98785599,2642.6,2642.3,5.39729895]
[1739158732511,2.6116659,2642.4,2642.0,3.2078]
[1739158732812,2.6116659,2642.2,2642.0,3.2078]
[1739158733111,2.6116659,2642.2,2641.7,3.2078]
[1739158733406,2.6116659,2642.2,2641.6,3.2078]
[1739158733603,2.6116659,2642.2,2642.0,3.2078]
[1739158733803,2.6116659,2642.2,2642.1,3.2078]
[1739158733999,2.6116659,2642.2,2641.9,2.18949895]
[1739158734408,2.6116659,2642.0,2641.8,3.2078]
[1739158734607,3.95017446,2642.1,2641.9,3.2078]
[1739158734815,3.2078,2642.6,2641.6,3.2078]
[1739158734816,6.56184036,2641.9,2641.6,3.2078]
[1739158735114,2.6116659,2641.7,2641.5,2.18949895]
[1739158735408,6.98040064,2641.6,2641.3,3.2078]
[1739158735813,2.6116659,2641.5,2641.3,3.2078]
[1739158736010,2.6116659,2641.4,2641.1,2.18936985]
[1739158736307,2.6116659,2641.2,2640.6,3.2078]
[1739158736508,2.6116659,2640.8,2640.3,5.39716985]
[1739158736702,0.27981715,2641.1,2640.6,3.2078]
[1739158737012,2.715,2641.9,2641.0,3.2078]
[1739158737212,2.6116659,2641.3,2641.0,3.2078]
[1739158737409,0.0056801,2641.1,2641.0,3.2078]
[1739158737907,2.715,2641.9,2641.0,3.2078]
[1739158738110,2.715,2641.9,2640.9,2.18970042]
[1739158738111,2.6116659,2641.7,2641.5,3.2078]
[1739158738310,2.6116659,2641.2,2640.9,46.19750042]
[1739158738606,4.13189327,2641.6,2640.9,5.39750042]
[1739158738801,2.6116659,2641.5,2641.0,3.2078]
[1739158739006,2.6116659,2641.4,2641.3,2.18970042]
[1739158739206,3.99742501,2641.4,2641.1,44.0078]
[1739158739509,2.6116659,2641.2,2641.1,3.2078]
[1739158740109,6.60909091,2641.2,2641.1,3.2078]
[1739158740514,6.60909091,2641.2,2641.0,0.0056801]
[1739158740814,2.6116659,2641.1,2641.0,0.0056801]
[1739158741214,6.71343069,2641.1,2641.0,0.0056801]
[1739158741712,2.6116659,2641.1,2641.0,3.2134801]
[1739158741908,4.10176479,2641.1,2641.0,3.2134801]